fUST/lending_fUST_20260109
["ID","MTS","AMOUNT","RATE_DAILY","PERIOD"]
[401064137,1767898246553,-1502.08,0.000288,14]
[401064139,1767898246562,-1200.0,0.00028846,7]
[401064141,1767898246572,-4895.1460992,0.00028877,2]
[401064143,1767898246583,-500.0,0.00028941,7]
[401064144,1767898246592,-1200.0,0.0002897,7]
[401064146,1767898246603,-2373.26906487,0.00028986,2]
[401064149,1767898246612,-1200.0,0.00029026,7]
[401064151,1767898246621,-950.0,0.00029041,5]
[401064153,1767898246631,-700.12098692,0.00029041,5]
[401064155,1767898246641,-450.0,0.00029041,5]
[401064157,1767898246650,-450.0,0.00029041,5]
[401064159,1767898246659,-589.05773864,0.00029065,5]
[401064161,1767898246668,-875.15,0.000291,7]
[401064163,1767898246678,-1200.0,0.00029111,7]
[401064164,1767898246687,-297.0,0.00029124,2]
[401064166,1767898246696,-2373.26906487,0.00029142,2]
[401064168,1767898246705,-2000.0,0.00029286,7]
[401064170,1767898246715,-9928.29409022,0.00029304,2]
[401064173,1767898246724,-865.15778196,0.00029342,5]
[401064175,1767898246734,-3460.63112786,0.00029342,5]
[401064177,1767898246743,-3914.79384726,0.00029342,5]
[401064179,1767898246752,-380.0,0.0002938,2]
[401064181,1767898246761,-2373.26906501,0.00029394,2]
[401064183,1767898246770,-203.0,0.00029397,34]
[401064185,1767898246779,-20550.55,0.000294,2]
[401064187,1767898246789,-1200.0,0.0002942,7]
[401064189,1767898246798,-1865.0,0.00029442,2]
[401064191,1767898246807,-3193.0336921,0.00029465,2]
[401064193,1767898246817,-160.0,0.00029481,5]
[401064195,1767898246825,-1865.0,0.00029492,2]
[401064197,1767898246834,-162.93,0.000295,7]
[401064198,1767898246843,-163.99,0.000295,7]
[401064200,1767898246855,-561.81015946,0.00029547,25]
[401064202,1767898246864,-1200.0,0.00029575,7]
[401064205,1767898246874,-1050.0,0.00029589,5]
[401064206,1767898246883,-550.0,0.00029589,5]
[401064209,1767898246893,-550.0,0.00029589,5]
[401064210,1767898246901,-810.2,0.00029591,3]
[401064212,1767898246910,-1200.0,0.00029595,7]
[401064214,1767898246920,-167.4,0.000296,7]
[401064216,1767898246929,-5000.0,0.00029635,2]
[401064219,1767898246940,-484.0,0.00029641,2]
[401064221,1767898246954,-1363687.64734936,0.000297,2]
[401064223,1767898246963,-757.340513,0.000297,7]
[401064224,1767898246973,-757.340513,0.000297,7]
[401064227,1767898246983,-757.340513,0.000297,7]
[401064229,1767898246993,-757.340513,0.000297,7]
[401064231,1767898247002,-151.0,0.000297,7]
[401064233,1767898247011,-193.620825,0.000297,7]
[401064235,1767898247021,-193.620825,0.000297,7]
[401064236,1767898247031,-500.0,0.00029791,7]
[401064238,1767898247042,-1781.0,0.00029803,7]
[401064240,1767898247051,-426.57,0.00029874,30]
[401064242,1767898247060,-1865.0,0.00029886,7]
[401064244,1767898247070,-151.0,0.000299,15]
[401064247,1767898247080,-151.0,0.000299,15]
[401064248,1767898247089,-790.46133503,0.00029901,7]
[401064250,1767898247098,-1993.0,0.00029909,7]
[401064252,1767898247107,-1781.0,0.00029922,2]
[401064254,1767898247117,-2000.0,0.00029956,7]
[401064256,1767898247126,-1200.0,0.00029962,7]
[401064259,1767898247137,-161.70961274,0.0003,3]
[401064261,1767898247147,-22380.51796254,0.0003,4]
[401064263,1767898247156,-12069.01025408,0.0003,30]
[401064264,1767898247165,-1125.0,0.0003,5]
[401064267,1767898247175,-165.46,0.0003,5]
[401064269,1767898247184,-300.0,0.0003,60]
[401064270,1767898247194,-269.70662881,0.0003,2]
[401064272,1767898247203,-2363.90538733,0.0003,2]
[401064274,1767898247213,-14011.26875714,0.0003,7]
[401064276,1767898247222,-151.0,0.0003,20]
[401064279,1767898247232,-151.0,0.0003,12]
[401064281,1767898247241,-151.0,0.0003,12]
[401064283,1767898247255,-1041.66666667,0.0003,7]
[401064285,1767898247264,-604.32550028,0.0003,2]
[401064287,1767898247273,-1098.76,0.0003,30]
[401064289,1767898247282,-1041.66666667,0.0003,30]
[401064291,1767898247291,-1781.0,0.00030025,2]
[401064293,1767898247301,-1098.76,0.0003006,30]
[401064294,1767898247310,-4208.19776384,0.00030079,5]
[401064296,1767898247319,-7778.63361765,0.0003008,5]
[401064299,1767898247329,-1781.0,0.00030093,7]
[401064301,1767898247338,-1897.2,0.000301,2]
[401064302,1767898247348,-158.09,0.000301,2]
[401064304,1767898247358,-151.0,0.000301,10]
[401064306,1767898247367,-1502.08,0.000301,14]
[401064308,1767898247376,-1000.0,0.000301,14]
[401064310,1767898247385,-1000.0,0.000301,14]
[401064312,1767898247395,-1000.0,0.000301,14]
[401064314,1767898247404,-1000.0,0.000301,14]
[401064316,1767898247414,-167.94341584,0.000301,14]
[401064318,1767898247423,-1781.0,0.00030123,2]
[401064320,1767898247433,-28365.88550987,0.0003013,20]
[401064322,1767898247444,-4017.17054394,0.0003013,30]
[401064324,1767898247453,-1865.0,0.00030133,2]
[401064326,1767898247463,-3851.05736369,0.00030136,60]
[401064328,1767898247472,-3851.05736369,0.00030136,60]
[401064330,1767898247482,-3851.05736369,0.00030136,60]
[401064332,1767898247492,-3851.05736369,0.00030136,60]
[401064334,1767898247501,-3851.05736369,0.00030136,60]
[401064336,1767898247511,-535.54752534,0.00030136,12]
[401064338,1767898247520,-500.0,0.00030136,15]
[401064340,1767898247529,-500.0,0.00030136,15]
[401064342,1767898247539,-500.0,0.00030136,15]
[401064344,1767898247548,-500.0,0.00030136,15]
[401064346,1767898247558,-500.0,0.00030136,15]
[401064348,1767898247567,-500.0,0.00030136,15]
[401064350,1767898247577,-500.0,0.00030136,15]
[401064352,1767898247586,-500.0,0.00030136,15]
[401064354,1767898247595,-500.0,0.00030136,15]
[401064356,1767898247605,-500.0,0.00030136,15]
[401064358,1767898247614,-500.0,0.00030136,15]
[401064361,1767898247625,-648.8173855,0.00030136,15]
[401064363,1767898247637,-1000.0,0.00030136,2]
[401064365,1767898247649,-1000.0,0.00030136,2]
[401064367,1767898247658,-1000.0,0.00030136,2]
[401064369,1767898247667,-1000.0,0.00030136,2]
[401064371,1767898247677,-1000.0,0.00030136,2]
[401064373,1767898247686,-1000.0,0.00030136,2]
[401064375,1767898247695,-1000.0,0.00030136,2]
[401064377,1767898247704,-1000.0,0.00030136,2]
[401064378,1767898247714,-1000.0,0.00030136,2]
[401064381,1767898247723,-937.30796305,0.00030136,2]
[401064382,1767898247732,-500.0,0.00030136,30]
[401064384,1767898247741,-500.0,0.00030136,30]
[401064386,1767898247750,-500.0,0.00030136,30]
[401064388,1767898247760,-500.0,0.00030136,30]
[401064390,1767898247769,-509.74196328,0.00030136,30]
[401064392,1767898247778,-500.0,0.00030136,8]
[401064394,1767898247787,-500.0,0.00030136,8]
[401064396,1767898247796,-500.0,0.00030136,8]
[401064398,1767898247805,-500.0,0.00030136,8]
[401064400,1767898247814,-500.0,0.00030136,8]
[401064402,1767898247823,-500.0,0.00030136,30]
[401064404,1767898247832,-500.0,0.00030136,30]
[401064406,1767898247842,-500.0,0.00030136,30]
[401064408,1767898247851,-500.0,0.00030136,30]
[401064410,1767898247860,-500.0,0.00030136,30]
[401064412,1767898247870,-500.0,0.00030136,30]
[401064414,1767898247878,-500.0,0.00030136,30]
[401064416,1767898247887,-500.0,0.00030136,30]
[401064418,1767898247896,-500.0,0.00030136,30]
[401064420,1767898247905,-500.0,0.00030136,30]
[401064422,1767898247914,-500.0,0.00030136,30]
[401064424,1767898247925,-500.0,0.00030136,30]
[401064426,1767898247934,-500.0,0.00030136,30]
[401064428,1767898247943,-500.0,0.00030136,30]
[401064429,1767898247956,-601.4235728,0.00030136,30]
[401064431,1767898247965,-1000.0,0.00030136,2]
[401064433,1767898247974,-1000.0,0.00030136,2]
[401064435,1767898247984,-1000.0,0.00030136,2]
[401064438,1767898247996,-1000.0,0.00030136,2]
[401064439,1767898248006,-1000.0,0.00030136,2]
[401064442,1767898248016,-1000.0,0.00030136,2]
[401064443,1767898248029,-1000.0,0.00030136,2]
[401064446,1767898248039,-1000.0,0.00030136,2]
[401064447,1767898248048,-1000.0,0.00030136,2]
[401064450,1767898248057,-1000.0,0.00030136,2]
[401064452,1767898248066,-1000.0,0.00030136,2]
[401064454,1767898248076,-1000.0,0.00030136,2]
[401064456,1767898248086,-584.62852237,0.00030136,2]
[401064458,1767898248096,-500.001,0.00030136,2]
[401064460,1767898248106,-191.68238698,0.00030136,7]
[401064462,1767898248115,-500.0,0.00030136,7]
[401064464,1767898248124,-500.0,0.00030136,30]
[401064466,1767898248133,-500.0,0.00030136,30]
[401064468,1767898248142,-500.0,0.00030136,30]
[401064470,1767898248151,-500.0,0.00030136,30]
[401064472,1767898248161,-500.0,0.00030136,30]
[401064474,1767898248170,-500.0,0.00030136,30]
[401064475,1767898248180,-500.0,0.00030136,30]
[401064477,1767898248190,-500.0,0.00030136,30]
[401064479,1767898248199,-500.0,0.00030136,30]
[401064481,1767898248208,-500.0,0.00030136,30]
[401064483,1767898248218,-500.0,0.00030136,30]
[401064486,1767898248227,-500.0,0.00030136,30]
[401064488,1767898248237,-500.0,0.00030136,30]
[401064490,1767898248246,-500.0,0.00030136,30]
[401064491,1767898248256,-500.0,0.00030136,30]
[401064493,1767898248267,-500.0,0.00030136,30]
[401064496,1767898248276,-500.0,0.00030136,30]
[401064498,1767898248285,-500.0,0.00030136,30]
[401064500,1767898248295,-500.0,0.00030136,30]
[401064501,1767898248304,-500.0,0.00030136,30]
[401064504,1767898248314,-500.0,0.00030136,30]
[401064506,1767898248323,-500.0,0.00030136,30]
[401064507,1767898248332,-500.0,0.00030136,30]
[401064509,1767898248342,-152.77949599,0.00030136,30]
[401064512,1767898248352,-500.0,0.00030136,60]
[401064514,1767898248362,-500.0,0.00030136,60]
[401064515,1767898248371,-500.0,0.00030136,60]
[401064517,1767898248380,-258.34773752,0.00030136,60]
[401064519,1767898248390,-500.0,0.00030136,7]
[401064521,1767898248399,-500.0,0.00030136,7]
[401064523,1767898248408,-500.0,0.00030136,7]
[401064525,1767898248418,-500.0,0.00030136,7]
[401064527,1767898248428,-500.0,0.00030136,7]
[401064529,1767898248438,-500.0,0.00030136,7]
[401064531,1767898248447,-500.0,0.00030136,7]
[401064534,1767898248457,-500.0,0.00030136,7]
[401064536,1767898248466,-500.0,0.00030136,7]
[401064538,1767898248476,-500.0,0.00030136,7]
[401064540,1767898248485,-500.0,0.00030136,2]
[401064542,1767898248495,-504.10906512,0.00030136,2]
[401064544,1767898248504,-563.95,0.00030136,14]
[401064546,1767898248512,-563.95,0.00030136,14]
[401064547,1767898248521,-563.95,0.00030136,14]
[401064549,1767898248531,-563.95,0.00030136,14]
[401064551,1767898248540,-563.95,0.00030136,14]
[401064553,1767898248549,-563.95,0.00030136,14]
[401064555,1767898248558,-563.95,0.00030136,14]
[401064557,1767898248568,-563.95,0.00030136,14]
[401064559,1767898248577,-563.95,0.00030136,14]
[401064560,1767898248586,-563.95,0.00030136,14]
[401064561,1767898248595,-563.95,0.00030136,14]
[401064562,1767898248605,-563.95,0.00030136,14]
[401064563,1767898248614,-563.95,0.00030136,14]
[401064564,1767898248624,-563.95,0.00030136,14]
[401064565,1767898248633,-563.95,0.00030136,14]
[401064566,1767898248641,-563.95,0.00030136,14]
[401064567,1767898248650,-563.95,0.00030136,14]
[401064568,1767898248660,-563.95,0.00030136,14]
[401064569,1767898248669,-563.95,0.00030136,14]
[401064570,1767898248677,-563.95,0.00030136,14]
[401064571,1767898248686,-563.95,0.00030136,14]
[401064572,1767898248696,-563.95,0.00030136,14]
[401064573,1767898248705,-563.95,0.00030136,14]
[401064574,1767898248713,-564.06513682,0.00030136,14]
[401064575,1767898248722,-500.0,0.00030136,14]
[401064576,1767898248731,-576.39023583,0.00030136,14]
[401064577,1767898248740,-517.26411692,0.00030136,60]
[401064578,1767898248749,-500.0,0.00030136,100]
[401064579,1767898248758,-500.0,0.00030136,100]
[401064580,1767898248766,-500.0,0.00030136,100]
[401064581,1767898248775,-500.0,0.00030136,100]
[401064582,1767898248784,-500.0,0.00030136,100]
[401064583,1767898248793,-500.0,0.00030136,100]
[401064584,1767898248802,-255.06774883,0.00030136,100]
[401064586,1767898248811,-500.0,0.00030136,2]
[401064588,1767898248822,-500.0,0.00030136,2]
[401064590,1767898248831,-500.0,0.00030136,2]
[401064592,1767898248840,-500.0,0.00030136,2]
[401064594,1767898248850,-500.0,0.00030136,2]
[401064596,1767898248859,-500.0,0.00030136,2]
[401064598,1767898248868,-500.0,0.00030136,2]
[401064600,1767898248877,-500.0,0.00030136,2]
[401064602,1767898248886,-500.0,0.00030136,2]
[401064604,1767898248895,-500.0,0.00030136,2]
[401064606,1767898248905,-500.0,0.00030136,2]
[401064608,1767898248914,-500.0,0.00030136,2]
[401064610,1767898248924,-500.0,0.00030136,2]
[401064612,1767898248932,-500.0,0.00030136,2]
[401064614,1767898248941,-500.0,0.00030136,2]
[401064616,1767898248955,-500.0,0.00030136,2]
[401064618,1767898248963,-500.0,0.00030136,2]
[401064620,1767898248972,-500.0,0.00030136,2]
[401064622,1767898248982,-500.0,0.00030136,2]
[401064624,1767898248992,-500.0,0.00030136,2]
[401064626,1767898249002,-500.0,0.00030136,2]
[401064628,1767898249011,-620.35771465,0.00030136,2]
[401064630,1767898249024,-185.84971769,0.00030136,30]
[401064632,1767898249033,-500.0,0.00030136,2]
[401064634,1767898249043,-500.0,0.00030136,2]
[401064636,1767898249052,-500.0,0.00030136,60]
[401064638,1767898249062,-500.0,0.00030136,60]
[401064640,1767898249071,-500.0,0.00030136,60]
[401064642,1767898249080,-500.0,0.00030136,60]
[401064644,1767898249090,-500.0,0.00030136,60]
[401064646,1767898249099,-500.0,0.00030136,14]
[401064648,1767898249109,-500.0,0.00030136,14]
[401064650,1767898249118,-500.0,0.00030136,14]
[401064652,1767898249127,-500.0,0.00030136,14]
[401064654,1767898249136,-500.0,0.00030136,14]
[401064656,1767898249146,-500.50983515,0.00030136,14]
[401064658,1767898249154,-600.55324416,0.00030136,2]
[401064659,1767898249164,-500.0,0.00030136,30]
[401064661,1767898249173,-158.19492184,0.00030136,30]
[401064663,1767898249182,-500.0,0.00030136,2]
[401064665,1767898249191,-500.0,0.00030136,2]
[401064667,1767898249200,-500.0,0.00030136,2]
[401064669,1767898249209,-500.0,0.00030136,2]
[401064671,1767898249218,-500.0,0.00030136,2]
[401064673,1767898249227,-500.0,0.00030136,2]
[401064675,1767898249237,-500.0,0.00030136,2]
[401064678,1767898249246,-307.93703483,0.00030136,2]
[401064680,1767898249256,-9194.49,0.00030136,3]
[401064682,1767898249265,-9194.49,0.00030136,3]
[401064683,1767898249274,-9194.49,0.00030136,3]
[401064684,1767898249283,-9194.49,0.00030136,3]
[401064685,1767898249292,-9194.49,0.00030136,3]
[401064686,1767898249426,-9194.49,0.00030136,3]
[401064687,1767898249437,-9194.49,0.00030136,3]
[401064688,1767898249448,-9194.49,0.00030136,3]
[401064689,1767898249457,-9194.49,0.00030136,3]
[401064690,1767898249466,-9194.49,0.00030136,3]
[401064691,1767898249475,-9194.49,0.00030136,3]
[401064692,1767898249484,-9194.49,0.00030136,3]
[401064693,1767898249493,-9194.49,0.00030136,3]
[401064694,1767898249503,-9194.49,0.00030136,3]
[401064695,1767898249512,-9194.49,0.00030136,3]
[401064696,1767898249521,-9194.49,0.00030136,3]
[401064697,1767898249530,-9194.49,0.00030136,3]
[401064698,1767898249540,-9194.49,0.00030136,3]
[401064699,1767898249551,-9194.49,0.00030136,3]
[401064700,1767898249561,-9194.49,0.00030136,3]
[401064701,1767898249571,-9194.49,0.00030136,3]
[401064702,1767898249580,-9194.49,0.00030136,3]
[401064703,1767898249590,-9194.49,0.00030136,3]
[401064704,1767898249600,-9194.61818853,0.00030136,3]
[401064705,1767898249609,-1963.69,0.00030136,6]
[401064706,1767898249618,-512.70301219,0.00030136,60]
[401064707,1767898249627,-1359.86,0.00030136,21]
[401064708,1767898249638,-1359.86,0.00030136,21]
[401064709,1767898249647,-1359.86,0.00030136,21]
[401064710,1767898249656,-1359.86,0.00030136,21]
[401064711,1767898249665,-1359.86,0.00030136,21]
[401064712,1767898249675,-1359.86,0.00030136,21]
[401064713,1767898249683,-1359.86,0.00030136,21]
[401064714,1767898249693,-1359.86,0.00030136,21]
[401064715,1767898249702,-1359.86,0.00030136,21]
[401064716,1767898249711,-1359.86,0.00030136,21]
[401064717,1767898249720,-1359.86,0.00030136,21]
[401064718,1767898249730,-1359.86,0.00030136,21]
[401064719,1767898249739,-1359.86,0.00030136,21]
[401064720,1767898249748,-1359.86,0.00030136,21]
[401064721,1767898249757,-1359.86,0.00030136,21]
[401064722,1767898249766,-1359.86,0.00030136,21]
[401064723,1767898249777,-1359.86,0.00030136,21]
[401064724,1767898249786,-1359.86,0.00030136,21]
[401064725,1767898249796,-1359.86,0.00030136,21]
[401064726,1767898249805,-1359.86,0.00030136,21]
[401064727,1767898249815,-1359.86,0.00030136,21]
[401064728,1767898249824,-1359.86,0.00030136,21]
[401064729,1767898249834,-1359.86,0.00030136,21]
[401064730,1767898249843,-1359.91966647,0.00030136,21]
[401064731,1767898249852,-500.0,0.00030136,7]
[401064732,1767898249862,-500.0,0.00030136,7]
[401064734,1767898249871,-500.0,0.00030136,7]
[401064735,1767898249882,-500.0,0.00030136,7]
[401064737,1767898249891,-500.0,0.00030136,7]
[401064738,1767898249900,-500.0,0.00030136,7]
[401064739,1767898249908,-500.0,0.00030136,7]
[401064740,1767898249918,-500.0,0.00030136,7]
[401064741,1767898249927,-500.0,0.00030136,7]
[401064742,1767898249936,-500.0,0.00030136,7]
[401064743,1767898249946,-500.0,0.00030136,7]
[401064744,1767898249958,-500.0,0.00030136,7]
[401064745,1767898249967,-500.0,0.00030136,7]
[401064746,1767898249976,-500.0,0.00030136,2]
[401064747,1767898249987,-278.33212368,0.00030136,2]
[401064748,1767898249996,-500.22877989,0.00030136,12]
[401064749,1767898250006,-1150.0,0.00030137,5]
[401064750,1767898250017,-251.453668,0.00030137,120]
[401064751,1767898250027,-171.829328,0.00030137,120]
[401064752,1767898250036,-171.829328,0.00030137,120]
[401064753,1767898250045,-650.0,0.00030137,5]
[401064754,1767898250055,-650.0,0.00030137,5]
[401064755,1767898250065,-1013.0,0.00030137,7]
[401064756,1767898250075,-1781.0,0.00030147,2]
[401064757,1767898250084,-1200.0,0.00030174,7]
[401064758,1767898250094,-1897.2,0.000302,2]
[401064759,1767898250103,-875.15,0.000302,7]
[401064760,1767898250112,-1601.54465129,0.00030202,2]
[401064761,1767898250122,-1200.0,0.00030206,7]
[401064762,1767898250132,-4895.1460992,0.00030269,2]
[401064763,1767898250141,-1897.2,0.000303,2]
[401064764,1767898250152,-1897.2,0.000303,2]
[401064765,1767898250162,-1200.0,0.00030321,7]
[401064766,1767898250172,-1781.0,0.00030341,7]
[401064767,1767898250181,-1781.0,0.0003037,7]
[401064768,1767898250191,-1897.2,0.000304,2]
[401064769,1767898250201,-1897.2,0.000304,2]
[401064770,1767898250211,-158.09,0.000304,2]
[401064771,1767898250220,-800.0,0.00030403,2]
[401064772,1767898250229,-500.0,0.00030417,7]
[401064773,1767898250239,-1711.39759094,0.00030419,5]
[401064774,1767898250249,-376.9815269,0.00030445,30]
[401064775,1767898250258,-376.9815269,0.00030445,30]
[401064776,1767898250267,-1781.0,0.00030449,2]
[401064777,1767898250276,-1200.0,0.00030465,7]
[401064778,1767898250287,-178.0,0.00030493,40]
[401064779,1767898250296,-1200.0,0.00030499,7]
[401064780,1767898250305,-1897.2,0.000305,2]
[401064781,1767898250315,-500.0,0.00030527,7]
[401064782,1767898250325,-1200.0,0.00030559,7]
[401064783,1767898250335,-1865.0,0.00030584,2]
[401064784,1767898250345,-1897.2,0.000306,2]
[401064785,1767898250355,-1897.2,0.000306,2]
[401064786,1767898250364,-20550.55,0.000306,2]
[401064787,1767898250373,-2000.0,0.00030626,7]
[401064788,1767898250383,-160.0,0.0003065,6]
[401064789,1767898250392,-800.0,0.00030658,2]
[401064790,1767898250402,-1200.0,0.00030673,7]
[401064791,1767898250411,-500.0,0.00030674,7]
[401064792,1767898250420,-561.81015946,0.00030684,26]
[401064793,1767898250430,-651.66050381,0.00030685,5]
[401064794,1767898250439,-752.31822059,0.00030685,5]
[401064795,1767898250449,-751.66658596,0.00030685,5]
[401064796,1767898250459,-1897.2,0.000307,2]
[401064797,1767898250468,-35714.28,0.000307,6]
[401064798,1767898250478,-158.09,0.000307,2]
[401064799,1767898250488,-162.93,0.000307,7]
[401064800,1767898250497,-163.99,0.000307,7]
[401064801,1767898250507,-1865.0,0.00030718,2]
[401064802,1767898250516,-800.0,0.00030722,2]
[401064803,1767898250525,-1865.0,0.00030747,7]
[401064804,1767898250535,-1897.2,0.000308,2]
[401064805,1767898250544,-1897.2,0.000308,2]
[401064806,1767898250553,-810.2,0.00030801,4]
[401064807,1767898250562,-38000.0,0.000309,10]
[401064808,1767898250572,-1897.2,0.000309,2]
[401064809,1767898250582,-1897.2,0.000309,2]
[401064810,1767898250591,-38000.0,0.00030958,10]
[401064811,1767898250600,-784.10783729,0.00030958,10]
[401064812,1767898250610,-309.68,0.00030958,30]
[401064813,1767898250619,-500.0,0.00030974,7]
[401064814,1767898250628,-1865.0,0.00030979,2]
[401064815,1767898250638,-1215.93141971,0.00031,120]
[401064816,1767898250648,-1897.2,0.00031,2]
[401064817,1767898250658,-158.09,0.00031,2]
[401064818,1767898250667,-187.16638295,0.00031,120]
[401064819,1767898250677,-1041.66666667,0.00031,10]
[401064820,1767898250686,-1145.67966361,0.00031,120]
[401064821,1767898250695,-1041.66666667,0.00031,3]
[401064822,1767898250706,-1041.66666667,0.00031,7]
[401064823,1767898250715,-3821.1359462,0.0003104,5]
[401064824,1767898250724,-4296.36810203,0.0003104,5]
[401064825,1767898250733,-5000.0,0.0003108,2]
[401064826,1767898250743,-1897.2,0.000311,2]
[401064827,1767898250753,-1897.2,0.000311,2]
[401064828,1767898250762,-568.76,0.00031173,30]
[401064829,1767898250771,-1897.2,0.000312,2]
[401064830,1767898250780,-1897.2,0.000312,2]
[401064831,1767898250790,-158.09,0.000312,2]
[401064832,1767898250800,-875.15,0.000312,7]
[401064833,1767898250809,-800.0,0.00031283,2]
[401064834,1767898250818,-151.03322731,0.00031289,2]
[401064835,1767898250828,-2000.0,0.00031295,7]
[401064836,1767898250837,-1897.2,0.000313,2]
[401064837,1767898250847,-1502.08,0.000313,14]
[401064838,1767898250856,-628.0,0.00031311,2]
[401064839,1767898250865,-2146.0,0.00031311,2]
[401064840,1767898250874,-1366.0,0.00031311,2]
[401064841,1767898250883,-800.0,0.00031313,2]
[401064842,1767898250892,-1200.0,0.00031338,7]
[401064843,1767898250901,-2261.68039598,0.00031354,5]
[401064844,1767898250910,-749.42891218,0.00031397,2]
[401064845,1767898250920,-1897.2,0.000314,2]
[401064846,1767898250930,-1897.2,0.000314,2]
[401064847,1767898250939,-405.0,0.00031402,30]
[401064848,1767898250952,-881.0,0.00031402,30]
[401064849,1767898250961,-303.0,0.00031402,30]
[401064850,1767898250970,-753.9630538,0.00031404,30]
[401064851,1767898250980,-376.9815269,0.00031404,30]
[401064852,1767898250991,-376.9815269,0.00031404,30]
[401064853,1767898251000,-376.9815269,0.00031404,30]
[401064854,1767898251010,-376.9815269,0.00031404,30]
[401064855,1767898251020,-376.9815269,0.00031404,30]
[401064856,1767898251029,-500.0,0.00031422,7]
[401064857,1767898251039,-376.9871626,0.00031463,30]
[401064858,1767898251048,-500.0,0.0003149,7]
[401064859,1767898251059,-1897.2,0.000315,2]
[401064860,1767898251068,-158.09,0.000315,2]
[401064861,1767898251078,-309.68,0.00031506,31]
[401064862,1767898251088,-1963.69,0.00031506,8]
[401064863,1767898251098,-1865.0,0.00031545,7]
[401064864,1767898251108,-155.0,0.00031589,47]
[401064865,1767898251118,-1200.0,0.0003159,7]
[401064866,1767898251128,-1897.2,0.000316,2]
[401064867,1767898251137,-1897.2,0.000316,2]
[401064868,1767898251147,-1865.0,0.00031614,2]
[401064869,1767898251156,-539.1838461,0.00031616,30]
[401064870,1767898251166,-4895.1460992,0.00031662,2]
[401064871,1767898251175,-3878.93411569,0.00031662,5]
[401064872,1767898251184,-800.0,0.00031689,2]
[401064873,1767898251193,-1200.0,0.00031692,7]
[401064874,1767898251203,-1897.2,0.000317,2]
[401064875,1767898251212,-1897.2,0.000317,2]
[401064876,1767898251222,-2200.0,0.00031714,7]
[401064877,1767898251231,-500.0,0.00031742,7]
[401064878,1767898251240,-500.0,0.00031762,7]
[401064879,1767898251249,-1897.2,0.000318,2]
[401064880,1767898251259,-158.09,0.000318,2]
[401064881,1767898251269,-20550.55,0.000318,2]
[401064882,1767898251278,-160.0,0.0003182,7]
[401064883,1767898251287,-561.81015946,0.00031821,28]
[401064884,1767898251296,-600.0,0.00031891,2]
[401064885,1767898251305,-1215.93141971,0.000319,120]
[401064886,1767898251315,-504.39761329,0.000319,2]
[401064887,1767898251324,-1897.2,0.000319,2]
[401064888,1767898251334,-1897.2,0.000319,2]
[401064889,1767898251343,-1041.66666667,0.000319,10]
[401064890,1767898251352,-1145.67966361,0.000319,120]
[401064891,1767898251361,-1041.66666667,0.000319,3]
[401064892,1767898251370,-162.0,0.0003192,3]
[401064893,1767898251382,-413.4277887,0.0003194,30]
[401064894,1767898251391,-500.0,0.00031964,7]
[401064895,1767898251401,-2000.0,0.00031965,7]
[401064896,1767898251410,-6800.0,0.00032,7]
[401064897,1767898251420,-1897.2,0.00032,2]